Cogmind - Beta 9.6 @@@ ROGUE MODE // 2020.05.30 @ 13:51:15 Player: pGoos Result: Destroyed by G-47 Trooper with Particle Gun Performance ------------- Evolutions (2) 1000 Regions Visited (4) 800 Robots Destroyed (18) 90 Value Destroyed (402) 402 Prototype IDs (1) 20 Alien Tech Used (0) 0 Bonus (0) 0 TOTAL SCORE: 2312 Bonus ------- None Cogmind --------- Core Integrity 0/550 Matter 146/300 Energy 15/100 System Corruption 0% Temperature Cool (9) Movement Flying (102) Ox1 Location -8/Materials Parts ------- > --- POWER (1) -------- (None) > --- PROPULSION (4) --- Improved Flight Unit Improved Flight Unit > --- UTILITY (4) ------ Large Storage Unit Improved Targeting Computer Improved Targeting Computer Improved Targeting Computer > --- WEAPON (2) ------- Axe Axe > --- INVENTORY (10) --- Medium Storage Unit Medium Storage Unit Large Storage Unit Peak State ------------ > --- POWER ------------ Ion Engine > --- PROPULSION ------- Improved Flight Unit Improved Flight Unit Improved Flight Unit > --- UTILITY ---------- Large Storage Unit Light Armor Plating Medium Armor Plating > --- WEAPON ----------- Beam Rifle Beam Rifle > --- INVENTORY -------- Ion Engine Light Ion Engine VTOL Module Improved Flight Unit Medium Storage Unit Medium Storage Unit Large Storage Unit Grenade Launcher [Rating: 19] Favorites ----------- Power Light Ion Engine Engine Light Ion Engine Propulsion Improved Flight Unit Treads Light Treads Wheel Wheel Flight Unit Improved Flight Unit Utility Hardened Light Armor Plating Storage Small Storage Unit Processor Improved Targeting Computer Protection Hardened Light Armor Plating Weapon Beam Rifle Energy Gun Beam Rifle Ballistic Gun Assault Rifle Launcher Grenade Launcher Slashing Weapon Axe Build | -11 -10 -10 -9 -8 ------- Run | Scr Mat Min Mat Mat Slots Evolved 4 | . . . 2 2 Power . | . . . . . Propulsion 2 | . . . 1 1 Utility 2 | . . . 1 1 Weapon . | . . . . . Parts Attached 61 | 9 3 11 25 13 Power 7 | 1 1 1 3 1 Engine 7 | 1 1 1 3 1 Core . | . . . . . Reactor . | . . . . . Propulsion 20 | 4 . 7 6 3 Treads 2 | 2 . . . . Leg . | . . . . . Wheel 7 | 2 . 5 . . Hover . | . . . . . Flight 11 | . . 2 6 3 Utility 19 | 2 1 2 9 5 Device . | . . . . . Storage 8 | 2 . 1 3 2 Processor 3 | . . . . 3 Hackware . | . . . . . Protection 8 | . 1 1 6 . Artifact . | . . . . . Weapon 15 | 2 1 1 7 4 Energy Gun 9 | 1 1 . 6 1 Energy Cannon . | . . . . . Ballistic Gun 3 | 1 . 1 1 . Ballistic Cannon . | . . . . . Launcher 1 | . . . . 1 Special Weapon . | . . . . . Impact Weapon . | . . . . . Slashing Weapon 2 | . . . . 2 Piercing Weapon . | . . . . . Special Melee Weapon . | . . . . . Unidentified Prototypes 1 | . . . 1 . Parts Lost 19 | . . . 10 9 Power 2 | . . . . 2 Propulsion 4 | . . . . 4 Utility 4 | . . . 4 . Weapon 9 | . . . 6 3 Highest Loss Streak 9 | . . . 4 9 Average Slot Usage (%) 87 | . 95 99 85 61 Engine 10 | . 14 14 10 3 Wheel 13 | . 28 25 4 . Flight 14 | . . 2 26 24 Storage 16 | . 14 14 13 28 Protection 11 | . 10 14 14 . Energy Gun 11 | . 14 14 12 2 Ballistic Gun 7 | . 14 14 4 . Naked Turns . | . . . . . Heaviest Build 56 | 11 17 17 51 56 Greatest Support 40 | 40 26 26 20 23 Greatest Overweight (x) 4 | 1 . 4 3 4 Average Overweight (x) . | . . . 1 1 Largest Inventory Capacity 24 | 6 6 6 20 24 Average Capacity 9 | 4 6 5 8 19 Most Carried 10 | 4 6 6 10 5 Average Carried 5 | 2 5 5 6 2 Final Capacity 20 | 6 6 6 20 10 Final Carried 6 | 4 6 6 6 3 Class Distribution -------------------- 71% | Mutant 18% | Hauler-Mutant 6% | Sprinter 3% | Scavenger-Mutant Dominant Class ---------------- Mutant | -10/Materials Mutant | -10/Mines Mutant | -9/Materials Hauler-Mutant | -8/Materials Resources | -11 -10 -10 -9 -8 ----------- Run | Scr Mat Min Mat Mat Matter Collected 607 | 229 81 117 180 . Remotely . | . . . . . Salvage Created 463 | . 81 58 205 119 Parts 35 | . 10 7 12 6 Haulers Intercepted . | . . . . . Recyclers Shooed 3 | . . . 2 1 Parts Field Recycled . | . . . . . Retrieved Matter . | . . . . . Parts Self-Destructed . | . . . . . Prevented . | . . . . . Kills | -11 -10 -10 -9 -8 ------- Run | Scr Mat Min Mat Mat Combat Hostiles Destroyed 15 | . 4 2 4 5 Melee 1 | . . . . 1 Guns 9 | . 4 2 3 . AOE 4 | . . . . 4 Classes Destroyed 6 | . 2 1 2 1 Worker 2 | . . 2 . . Watcher 1 | . . . 1 . Swarmer 8 | . 3 2 . 3 Grunt 4 | . 1 . 2 1 Sentry 2 | . . . 2 . Hunter 1 | . . . . 1 Best Kill Streak 4 | . 3 2 2 4 Combat Bots Only 4 | . 3 2 2 4 Max Kills in Single Turn 3 | . 2 1 1 3 Gunslinging 1 | . 1 . . . Exploded 3 | . . . . 3 Melee 1 | . . . . 1 Uniques/NPCs Destroyed . | . . . . . Combat | -11 -10 -10 -9 -8 -------- Run | Scr Mat Min Mat Mat Damage Taken 2674 | . 88 82 1344 1160 Core 758 | . 6 24 169 559 Absorbed by Shields . | . . . . . Core Remaining (%) 81 | 100 . 88 57 . Volleys Fired 46 | . 6 9 28 3 Largest 2 | . 2 2 2 1 Hottest 112 | . 76 76 112 56 Shots Fired 74 | . 12 18 41 3 Gun 72 | . 12 18 41 1 Cannon . | . . . . . Launcher 2 | . . . . 2 Special . | . . . . . Kinetic 31 | . 6 9 16 . Thermal 41 | . 6 9 25 1 Explosive 2 | . . . . 2 Electromagnetic . | . . . . . Robot Hit Streak 9 | . 3 5 9 . Robot Miss Streak 2 | . 2 2 2 2 Penetration Max . | . . . . . Secondary Targets 3 | . 2 . 1 . Max Gunslinging Chain 1 | . 1 . 1 . Shots Hit Robots 48 | . 7 8 31 2 Core Hits 27 | . 5 5 9 8 Critical Hits 1 | . . . 1 . Critical Kills 1 | . . . 1 . Critical Parts Destroyed . | . . . . . Melee Attacks 2 | . . . . 2 Impact . | . . . . . Slashing 2 | . . . . 2 Piercing . | . . . . . Sneak Attacks . | . . . . . Combat Hostiles . | . . . . . Follow-up Attacks . | . . . . . Damage Inflicted 811 | . 116 98 342 255 Guns 532 | . 104 98 330 . Cannons . | . . . . . Explosions 157 | . . . . 157 Melee 67 | . . . . 67 Ramming 55 | . 12 . 12 31 Kinetic 127 | . 36 9 82 . Thermal 405 | . 68 89 248 . Explosive 157 | . . . . 157 Electromagnetic . | . . . . . Impact . | . . . . . Slashing 67 | . . . . 67 Piercing . | . . . . . Highest Corruption . | . . . . . Average Corruption . | . . . . . Corruption Purged . | . . . . . Overload Shots . | . . . . . Overflow Damage . | . . . . . Projectiles . | . . . . . Explosions . | . . . . . Melee . | . . . . . Knockbacks 1 | . . . . 1 Impact 1 | . . . . 1 Kinetic . | . . . . . Secondary . | . . . . . Self-Inflicted Damage 55 | . 6 . 6 43 Shots 2 | . . . . 2 Rammed 10 | . 1 . 2 7 Targets Rammed 10 | . 1 . 2 7 Kicked . | . . . . . Crushed . | . . . . . Highest Temperature 537 | . 90 135 537 12 Average Temperature 160 | . 37 55 207 9 Received Heat Transfer 735 | . 18 . 519 198 Effects 9 | . . . 9 . Shutdowns 2 | . . . 2 . Energy Bleed 1 | . . . 1 . Interference 1 | . . . 1 . Short Circuit 2 | . . . 2 . Damage (minor) 1 | . . . 1 . Damage (major) 2 | . . . 2 . Siege Activations . | . . . . . Robots Corrupted . | . . . . . Combat Hostiles . | . . . . . Parts Fried . | . . . . . Impact Corruptions . | . . . . . Robots Melted 1 | . . . 1 . Combat Hostiles 1 | . . . 1 . Parts Melted 3 | . 1 1 1 . Heat Transferred 1036 | . 185 222 629 . Parts Sabotaged . | . . . . . Parts Stolen . | . . . . . Parts Stripped . | . . . . . Power Chain Reactions . | . . . . . Missiles Intercepted . | . . . . . Alert | -11 -10 -10 -9 -8 ------- Run | Scr Mat Min Mat Mat Peak Influence 154 | . 90 109 154 134 Average Influence 65 | . 37 60 100 64 Maximum Alert Level . | . . . . . Low Security (%) 100 | 100 100 100 100 100 Level 1 . | . . . . . Level 2 . | . . . . . Level 3 . | . . . . . Level 4 . | . . . . . Level 5 . | . . . . . High Security . | . . . . . Max Security . | . . . . . Squads Dispatched 3 | . . . 1 2 Investigation . | . . . . . Extermination . | . . . . . Reinforcement 3 | . . . 1 2 Assault . | . . . . . Garrison . | . . . . . Intercept . | . . . . . Construction Impeded 1 | . . . . 1 Haulers Reinforced . | . . . . . Stealth | -11 -10 -10 -9 -8 --------- Run | Scr Mat Min Mat Mat Distress Signals 2 | . . . 2 . Communications Jammed . | . . . . . Distress Signals . | . . . . . Times Spotted 33 | . 4 3 14 12 Peak Tracking Total 7 | . 3 3 4 7 Tactical Retreats 2 | . . . 1 1 Traps | -11 -10 -10 -9 -8 ------- Run | Scr Mat Min Mat Mat Traps Triggered 2 | . . . 2 . Indirectly . | . . . . . Trap Hack Attempts . | . . . . . Triggered . | . . . . . Disarmed . | . . . . . Reprogrammed . | . . . . . Reused . | . . . . . Traps Extracted . | . . . . . Installed . | . . . . . Triggered 1 | . . 1 . . Machines | -11 -10 -10 -9 -8 ---------- Run | Scr Mat Min Mat Mat Machines Disabled 1 | . . . 1 . Max in Single Turn 1 | . . . 1 . Machines Sabotaged . | . . . . . Garrisons Compromised . | . . . . . Overloaded Fab Kills . | . . . . . Fab Network Shutdowns . | . . . . . Hacking | -11 -10 -10 -9 -8 --------- Run | Scr Mat Min Mat Mat Machines Accessed 2 | . 1 . 1 . Terminals 2 | . 1 . 1 . Fabricators . | . . . . . Repair Stations . | . . . . . Recycling Units . | . . . . . Scanalyzers . | . . . . . Garrison Access . | . . . . . Total Hacks 4 | . 2 . 2 . Successful 4 | . 2 . 2 . Failed . | . . . . . Catastrophic . | . . . . . Database Lockouts . | . . . . . Manual . | . . . . . Terminals 4 | . 2 . 2 . Fabricators . | . . . . . Repair Stations . | . . . . . Recycling Units . | . . . . . Scanalyzers . | . . . . . Garrison Access . | . . . . . Terminal Hacks 4 | . 2 . 2 . Alert Level 1 | . . . 1 . Maintenance Status 1 | . 1 . . . Transport Status 1 | . 1 . . . Zone Layout 1 | . . . 1 . Fabricator Hacks . | . . . . . Repair Station Hacks . | . . . . . Recycling Unit Hacks . | . . . . . Scanalyzer . | . . . . . Garrison Access Hacks . | . . . . . Unauthorized Hacks . | . . . . . Terminals . | . . . . . Fabricators . | . . . . . Repair Stations . | . . . . . Recycling Units . | . . . . . Scanalyzers . | . . . . . Garrison Access . | . . . . . Data Cores Recovered . | . . . . . Used . | . . . . . Hacking Detections 2 | . 1 . 1 . Full Trace Events . | . . . . . Feedback Events . | . . . . . Feedback Blocked . | . . . . . Robot Schematics Acquired . | . . . . . Robots Built . | . . . . . Matter . | . . . . . Time . | . . . . . Total Robot Build Rating . | . . . . . Part Schematics Acquired . | . . . . . Parts Built . | . . . . . Matter . | . . . . . Time . | . . . . . Total Part Build Rating . | . . . . . Parts Repaired . | . . . . . Time . | . . . . . Parts Recycled . | . . . . . Recycled Matter . | . . . . . Retrieved Matter . | . . . . . Retrieved Components . | . . . . . Parts Scanalyzed . | . . . . . Part Schematics Acquired . | . . . . . Parts Damaged . | . . . . . Bothacking | -11 -10 -10 -9 -8 ------------ Run | Scr Mat Min Mat Mat Used RIF Installer . | . . . . . Robots Hacked . | . . . . . Non-combat . | . . . . . Combat . | . . . . . Robot Hacks Applied . | . . . . . Relay Couplers Released . | . . . . . Robots Rewired . | . . . . . Allies Hacked . | . . . . . Hacks Repelled . | . . . . . Allies | -11 -10 -10 -9 -8 -------- Run | Scr Mat Min Mat Mat Total Allies . | . . . . . Largest Group . | . . . . . Highest-Rated Group . | . . . . . Highest-Rated Ally . | . . . . . Total Orders . | . . . . . Ally Attacks . | . . . . . Total Damage . | . . . . . Kills . | . . . . . Allies Corrupted . | . . . . . Allies Melted . | . . . . . Intel | -11 -10 -10 -9 -8 ------- Run | Scr Mat Min Mat Mat Robot Analysis Total . | . . . . . Derelict Logs Recovered 1 | . . 1 . . Drone Launches . | . . . . . Drone Recoveries . | . . . . . Exploration | -11 -10 -10 -9 -8 ------------- Run | Scr Mat Min Mat Mat Turns Passed 1013 | 98 131 291 323 170 Spaces Moved 737 | 100 114 252 189 82 Core 44 | 44 . . . . Treads 7 | 7 . . . . Legs . | . . . . . Wheels 435 | 49 114 242 30 . Hover . | . . . . . Flight 251 | . . 10 159 82 Fastest Speed 29 | 50 90 80 29 102 Average Speed 102 | 79 90 94 108 158 Slowest Speed 360 | 160 90 360 245 312 Overloaded Moves . | . . . . . Propulsion Burnouts . | . . . . . Robots Hopped . | . . . . . Cave-ins Triggered . | . . . . . Exploration Rate (%) 19 | 4 21 39 18 16 Regions Visited 4 Branch Regions 1 Pre-discovered Areas . | . . . . . Known Exits Taken . | . . . . . Unknown Exits Taken 4 | 1 1 1 1 . Scrap Searched 1 | . . 1 . . Spaces Dug . | . . . . . Terrain Destroyed 11 | . . . . 11 Melee . | . . . . . Projectile . | . . . . . AOE 11 | . . . . 11 Actions | -11 -10 -10 -9 -8 --------- Run | Scr Mat Min Mat Mat Total 905 | 115 131 287 262 110 Wait 7 | . 2 3 2 . Move 733 | 99 113 251 188 82 Hop . | . . . . . Pick Up 19 | 4 3 3 9 . Fast Attach 33 | 8 1 5 13 6 Attach 13 | 1 . . 6 6 Detach 4 | 1 . . . 3 Swap 15 | . 2 6 6 1 Drop 23 | 2 3 10 8 . Fire 46 | . 6 9 28 3 Melee 2 | . . . . 2 Ram 10 | . 1 . 2 7 Kick . | . . . . . Crush . | . . . . . Escape Stasis . | . . . . . Rewire . | . . . . . Trap . | . . . . . Miscellaneous . | . . . . . Route ------- -11/Scrapyard -10/Materials -10/Mines -9/Materials -8/Materials History --------- Turn | Location | Event 4 | -11/Scrapyard | Discovered new exit (range 14) 99 | -11/Scrapyard | Entered Materials 215 | -10/Materials | Discovered new exit (range 5) 230 | -10/Materials | Entered Mines 233 | -10/Mines | Learned Materials garrison access intel 267 | -10/Mines | Discovered new exit (range 14) 307 | -10/Mines | Build established: Mutant 521 | -10/Mines | Entered Materials 521 | -9/Materials | Evolved 2 slots: Propulsion x1, Utility x1 821 | -9/Materials | Discovered new exit (range 10) 829 | -9/Materials | Lost 4 parts (2u2w) 844 | -9/Materials | Entered another Materials area 844 | -8/Materials | Evolved 2 slots: Propulsion x1, Utility x1 845 | -8/Materials | Loaded intel: 1 garrison access location 969 | -8/Materials | Lost 9 parts (2p4n3w) 982 | -8/Materials | Core integrity fell below 50% 1004 | -8/Materials | Core integrity fell below 20% 1014 | -8/Materials | Destroyed by G-47 Trooper with Particle Gun Last Messages --------------- 00970_ U-05 Engineer builds a Wall. 00972_ Slammed into R-06 Scavenger. 00972_ R-06 Scavenger knocked back. 00974_ U-05 Engineer builds a Wall. 00974_ Slammed into K-01 Serf. 00974_ U-05 Engineer lays Concrete. 00975_ U-05 Engineer builds a Wall. 00981_ Penetrated by Slug. 00988_ Slug penetrates Wall. 00992_ Penetrated by Slug. 00993_ Acquired Imp. Targeting Computer. 00999_ Fusion Modulator explodes. 00999_ Y-45 Defender destroyed. 00999_ A-02 Transporter destroyed. 01003_ Acquired Axe. 01004_ Slug penetrates Earth. 01006_ H-55 Commando destroyed. 01010_ R-06 Scavenger collects Hvy. Assault Rifle. 01010_ Acquired Axe. 01014_ R-06 Scavenger collects Lgt. Treads. Map ----- +----------------------------------------------------+ | ?????????????????????????????????????????????????? | | ?????????????????????????????????????????????????? | | ?????????????????????????????????????????????????? | | ?????????????????????????????????????????????????? | | ?????????????????????????????????????????????????? | | ?????????????????????????????????????????????????? | | ?????????????????????????????????????????????????? | | ?????????????????????????????????????????????????? | | ?????????????????????????????????????????????????? | | ?????????????????????????????????????????????????? | | ?????????????????????????????????????????????????? | | ?????????????????????????????????????????????????? | | ?????????????????????????????????????????????????? | | ?????????????????????????????????????????????????? | | ?????????????????????????????????????????????????? | | ?????????????????????????? ????????????????????? | | ?????????????????????????? #???????????????????? | | ?????????????????????????? #???????????????????? | | ?????????????????????????? #???????????????????? | | ?????????????????????????# #?????????????????? # | | ?????????????????????????# #???#######???????? | | ?????????????????######### #???# ###? #??? | | ?????????????????# # #??## # ## ##?? | | ?????????????????# [+% #??# " "##? | | ????????????"""" # /!# a #?## " " "? | | ????????????"""" ; /% @ #?# """""" | | ??????????# ; //; #?# # "# | | ??????????#######; r ;gg #?# # # !"# | | ???????????????# ; = ; ### " | | ??????????????# ; [% ; ## %= " | | ??????????????# ; ; # # # | | ??????????????###; ; t## ! # | | ????????????????#; ; # ######## | | ????????????????#; ;;;;;;; ###### ## % | | ????????????????#### # ## ### # | | ???????????????????####### ! #?# # | | ?????????????????????????# #?# # | | ?????????????????????????###########/### #?#/# | | ???????????????????????????????????????## ##?# | | ????????????????????????????????????????# #??# | | ????????????????????????????????????????# #??# | | ????????????????????????????????????????# #??# | | ????????????????????????????????????????# #??# | | ????????????????????????????????????????# #??# | | ????????????????????????????????????????# ###### | | ????????????????????????????????????????# | | ????????????????????????????????????????# | | ????????????????????????????????????????# | | ????????????????????????????????????????####+##### | | ?????????????????????????????????????????????????? | +----------------------------------------------------+ Best States ------------- Heat Dissipation 31 Energy Generation 10 Energy Capacity 250 Matter Stores 300 Matter Capacity 300 Sight Range 16 Terrain Scan Density 10 Armor Coverage 375 Evasion (%) 50 Targeting Accuracy 18 Recoil Reduction 2 Item Schematics ----------------- None Robot Schematics ------------------ None Fabricated ------------ Nothing Alien Tech Used ----------------- None Achievements -------------- None Challenges ------------ None Game ------ Seed GatlingDefensePlating Manual? 0 Play Time 00:29:32 Cumulative 15.1 hours Start 2020.05.30 @ 03:06:08 End 2020.05.30 @ 13:51:15 Sessions 3 Manual Loads 0 Difficulty Rogue Special Mode None Game No. 24 Rogue 24 Adventurer 0 Explorer 0 Win Type - Total 0 Types 0/0/0/0/0/0/0 Lore% 15 Gallery% 18 Achievement% 16 Wizard Run 0 Options --------- ASCII 0 Keyboard 0 Movement Mouse Keybinds 0 Fullscreen 2 Font 24/Terminus Map View 113x50 Tactical HUD 1 Map Filters NONE Filters NONE Steam 1 RUN: 9bed6c39-1f36-439f-a06e-07d273f97050